[Event "Mistrovství Čech mládeže 2023 - HD16"]
[Site "Harrachov, Czech Republic"]
[Date "2023.10.27"]
[Round "8.10"]
[White "Martinkovič, Adam"]
[Black "Sadil, Antonín"]
[Result "1/2-1/2"]
[TimeControl "90m + 30s"]
[WhiteElo "1680"]
[BlackElo "1792"]

1. e4 {[%clk 01:27:11]} {[%emt 00:03:47]} c5 {[%clk 01:30:50]} {[%emt
00:00:10]} 2. c4 {[%clk 01:27:31]} {[%emt 00:00:11]} Nc6 {[%clk 01:31:10]}
{[%emt 00:00:10]} 3. Nf3 {[%clk 01:27:51]} {[%emt 00:00:09]} g6 {[%clk
01:31:26]} {[%emt 00:00:14]} 4. Nc3 {[%clk 01:28:01]} {[%emt 00:00:20]} Bg7
{[%clk 01:31:23]} {[%emt 00:00:33]} 5. d3 {[%clk 01:28:21]} {[%emt 00:00:10]}
d6 {[%clk 01:31:15]} {[%emt 00:00:38]} 6. Be2 {[%clk 01:27:08]} Nf6 {[%clk
01:30:56]} {[%emt 00:02:33]} 7. O-O {[%clk 01:27:21]} Bd7 {[%clk 01:29:17]}
{[%emt 00:02:26]} 8. Be3 {[%clk 01:26:44]} O-O {[%clk 01:29:17]} {[%emt
00:01:35]} 9. h3 {[%clk 01:26:14]} Ne8 {[%clk 01:26:11]} {[%emt 00:04:37]} 10.
Qd2 {[%clk 01:24:15]} Nd4 {[%clk 01:26:16]} {[%emt 00:02:53]} 11. Bh6 {[%clk
01:22:13]} Nxf3+ {[%clk 01:25:40]} {[%emt 00:03:38]} 12. Bxf3 {[%clk 01:22:34]}
Rb8 {[%clk 01:24:11]} {[%emt 00:02:09]} 13. Bxg7 {[%clk 01:22:45]} Nxg7 {[%clk
01:24:31]} {[%emt 00:00:30]} 14. a4 {[%clk 01:22:26]} b6 {[%clk 01:23:41]}
{[%emt 00:02:08]} 15. Be2 {[%clk 01:20:14]} a6 {[%clk 01:22:46]} {[%emt
00:04:07]} 16. d4 {[%clk 01:20:14]} {[%emt 00:00:30]} Ne6 {[%clk 01:22:01]}
{[%emt 00:01:15]} 17. d5 {[%clk 01:19:23]} {[%emt 00:01:21]} Nd4 {[%clk
01:21:58]} {[%emt 00:00:32]} 18. Rab1 {[%clk 01:10:10]} {[%emt 00:09:44]} b5
{[%clk 01:17:29]} {[%emt 00:05:00]} 19. axb5 {[%clk 01:09:14]} {[%emt
00:01:25]} axb5 {[%clk 01:17:49]} {[%emt 00:00:11]} 20. b4 {[%clk 01:08:46]}
{[%emt 00:00:57]} Nxe2+ {[%clk 01:15:02]} {[%emt 00:03:17]} 21. Qxe2 {[%clk
01:08:25]} {[%emt 00:00:51]} bxc4 {[%clk 01:13:29]} {[%emt 00:02:03]} 22. bxc5
{[%clk 01:08:04]} {[%emt 00:00:51]} Qa5 {[%clk 01:11:44]} {[%emt 00:02:14]} 23.
Qxc4 {[%clk 01:06:13]} {[%emt 00:02:22]} Qxc5 {[%clk 01:11:23]} {[%emt
00:00:51]} 24. Qxc5 {[%clk 01:03:36]} {[%emt 00:03:07]} dxc5 {[%clk 01:11:52]}
{[%emt 00:00:01]} 25. Rxb8 {[%clk 01:03:04]} {[%emt 00:01:02]} Rxb8 {[%clk
01:12:19]} {[%emt 00:00:03]} 26. f4 {[%clk 01:02:36]} {[%emt 00:00:57]} Rb3
{[%clk 01:11:53]} {[%emt 00:00:55]} 27. Rc1 {[%clk 01:02:51]} {[%emt 00:00:16]}
f6 {[%clk 01:04:24]} {[%emt 00:08:00]} 28. Kf2 {[%clk 01:01:38]} {[%emt
00:01:42]} Kf7 {[%clk 01:03:35]} {[%emt 00:01:18]} 29. g4 {[%clk 01:00:29]}
{[%emt 00:01:40]} Rb4 {[%clk 01:01:36]} {[%emt 00:02:27]} 30. Kf3 {[%clk
00:59:45]} {[%emt 00:01:16]} h5 {[%emt 00:03:32]} 31. f5 {[%clk 00:54:37]}
{[%emt 00:05:35]} hxg4+ {[%clk 00:58:11]} {[%emt 00:00:55]} 32. hxg4 {[%clk
00:54:59]} {[%emt 00:00:07]} g5 {[%clk 00:55:18]} {[%emt 00:03:23]} 33. Nd1
{[%clk 00:52:49]} {[%emt 00:02:41]} c4 {[%clk 00:51:25]} {[%emt 00:04:22]} 34.
Ke3 {[%clk 00:52:40]} {[%emt 00:00:40]} Ba4 {[%clk 00:49:35]} {[%emt 00:02:19]}
35. Nc3 {[%clk 00:51:02]} {[%emt 00:02:08]} Bb3 {[%clk 00:49:15]} {[%emt
00:00:51]} 36. Kd4 {[%clk 00:50:46]} {[%emt 00:00:45]} Rb8 {[%clk 00:48:52]}
{[%emt 00:00:53]} 37. Rh1 {[%clk 00:50:37]} {[%emt 00:00:40]} Kg7 {[%clk
00:48:31]} {[%emt 00:00:51]} 38. Rh2 {[%clk 00:49:04]} {[%emt 00:02:02]} Ra8
{[%clk 00:48:25]} {[%emt 00:00:37]} 39. Rh1 {[%clk 00:49:19]} {[%emt 00:00:14]}
Ra5 {[%clk 00:48:21]} {[%emt 00:00:35]} 40. Re1 {[%clk 00:47:47]} {[%emt
00:02:01]} Kf8 {[%clk 00:43:35]} {[%emt 00:05:16]} 41. e5 {[%clk 00:46:55]}
{[%emt 00:01:22]} fxe5+ {[%clk 00:43:37]} {[%emt 00:00:28]} 42. Kxe5 {[%clk
00:46:46]} {[%emt 00:00:38]} Ra6 {[%clk 00:43:43]} {[%emt 00:00:24]} 43. Kd4
{[%clk 00:46:35]} {[%emt 00:00:41]} Rh6 {[%clk 00:43:19]} {[%emt 00:00:54]} 44.
Ne4 {[%clk 00:45:01]} {[%emt 00:02:04]} Rh4 {[%clk 00:42:13]} {[%emt 00:01:37]}
45. Rg1 {[%clk 00:44:23]} {[%emt 00:00:37]} Bc2 {[%clk 00:41:19]} {[%emt
00:01:25]} 46. Nxg5 {[%clk 00:41:14]} {[%emt 00:04:09]} Bxf5 {[%clk 00:41:21]}
{[%emt 00:00:28]} 47. Ne6+ {[%clk 00:40:15]} {[%emt 00:01:29]} Kg8 {[%clk
00:40:09]} {[%emt 00:01:41]} 48. Kxc4 {[%clk 00:36:51]} {[%emt 00:03:55]} Rxg4+
{[%clk 00:40:26]} {[%emt 00:00:12]} 49. Rxg4+ {[%clk 00:37:16]} {[%emt
00:00:05]} Bxg4 {[%clk 00:40:44]} {[%emt 00:00:13]} 50. Ng5 {[%clk 00:36:05]}
{[%emt 00:01:41]} Kg7 {[%clk 00:39:49]} {[%emt 00:01:24]} 51. Kc5 {[%clk
00:36:13]} {[%emt 00:00:23]} Kg6 {[%clk 00:39:10]} {[%emt 00:01:08]} 52. Ne6
{[%clk 00:33:49]} {[%emt 00:02:55]} Bxe6 {[%clk 00:38:55]} {[%emt 00:00:45]} 53.
d6 {[%clk 00:34:14]} {[%emt 00:00:06]} exd6+ {[%clk 00:39:02]} {[%emt
00:00:22]} 1/2-1/2

[Event "Mistrovství Čech mládeže 2023 - HD16"]
[Site "Harrachov, Czech Republic"]
[Date "2023.10.27"]
[Round "8.11"]
[White "Kaplanová, Dominika"]
[Black "Sochor, Antonín"]
[Result "1-0"]
[TimeControl "90m + 30s"]
[WhiteElo "1782"]
[BlackElo "1702"]

1. d4 {[%clk 01:30:37]} {[%emt 00:00:22]} Nf6 {[%clk 01:30:49]} {[%emt
00:00:10]} 2. Nf3 {[%clk 01:30:38]} {[%emt 00:00:29]} g6 {[%clk 01:31:09]}
{[%emt 00:00:09]} 3. g3 {[%clk 01:30:29]} {[%emt 00:00:40]} Bg7 {[%clk
01:31:28]} {[%emt 00:00:11]} 4. Bg2 {[%clk 01:30:00]} {[%emt 00:00:58]} O-O
{[%clk 01:31:11]} {[%emt 00:00:47]} 5. O-O {[%clk 01:29:19]} {[%emt 00:01:11]}
d6 {[%clk 01:31:26]} {[%emt 00:00:16]} 6. Nc3 {[%clk 01:28:57]} {[%emt
00:00:52]} Nbd7 {[%clk 01:31:09]} {[%emt 00:00:48]} 7. e4 {[%clk 01:28:04]}
{[%emt 00:01:22]} e5 {[%clk 01:31:19]} {[%emt 00:00:20]} 8. dxe5 {[%clk
01:27:04]} {[%emt 00:01:31]} dxe5 {[%clk 01:31:37]} {[%emt 00:00:12]} 9. Bg5
{[%clk 01:25:31]} {[%emt 00:02:03]} h6 {[%clk 01:30:03]} {[%emt 00:02:04]} 10.
Bxf6 {[%clk 01:22:57]} {[%emt 00:03:03]} Qxf6 {[%clk 01:29:21]} {[%emt
00:01:13]} 11. Nd5 {[%clk 01:20:33]} {[%emt 00:02:55]} Qd6 {[%clk 01:29:13]}
{[%emt 00:00:36]} 12. Nd2 {[%clk 01:14:56]} {[%emt 00:06:09]} Nb6 {[%clk
01:28:28]} {[%emt 00:01:15]} 13. Ne3 {[%clk 01:10:01]} {[%emt 00:05:24]} Be6
{[%clk 01:27:51]} {[%emt 00:01:07]} 14. Qe2 {[%clk 01:07:24]} {[%emt 00:03:07]}
Rad8 {[%clk 01:26:25]} {[%emt 00:01:56]} 15. Rfd1 {[%clk 01:05:51]} {[%emt
00:02:04]} Qc6 {[%clk 01:24:36]} {[%emt 00:02:19]} 16. c4 {[%clk 01:01:50]}
{[%emt 00:04:31]} Na4 {[%clk 01:20:57]} {[%emt 00:04:06]} 17. Nd5 {[%clk
00:58:14]} {[%emt 00:04:09]} Bxd5 {[%clk 01:17:28]} {[%emt 00:03:59]} 18. cxd5
{[%clk 00:55:54]} {[%emt 00:02:51]} Qc2 {[%clk 01:13:58]} {[%emt 00:03:59]} 19.
Rab1 {[%clk 00:53:39]} {[%emt 00:02:45]} Nxb2 {[%clk 01:12:19]} {[%emt
00:02:10]} 20. Rdc1 {[%clk 00:51:28]} {[%emt 00:02:40]} Qd3 {[%clk 01:09:52]}
{[%emt 00:02:56]} 21. Qxd3 {[%clk 00:51:00]} {[%emt 00:00:59]} Nxd3 {[%clk
01:09:55]} {[%emt 00:00:27]} 22. Rc3 {[%clk 00:51:16]} {[%emt 00:00:14]} Nxf2
{[%clk 01:09:06]} {[%emt 00:01:20]} 23. Kxf2 {[%clk 00:51:40]} {[%emt
00:00:05]} f5 {[%clk 01:09:28]} {[%emt 00:00:09]} 24. Kg1 {[%clk 00:49:16]}
{[%emt 00:02:53]} c6 {[%clk 01:09:36]} {[%emt 00:00:23]} 25. Rxb7 {[%clk
00:44:45]} {[%emt 00:05:01]} cxd5 {[%clk 01:09:40]} {[%emt 00:00:26]} 26. Rcc7
{[%clk 00:42:43]} {[%emt 00:02:31]} Bf6 {[%clk 01:09:57]} {[%emt 00:00:13]} 27.
exd5 {[%clk 00:39:08]} {[%emt 00:04:05]} e4 {[%clk 01:10:06]} {[%emt 00:00:20]}
28. Bf1 {[%clk 00:27:14]} {[%emt 00:12:24]} Be5 {[%clk 01:07:25]} {[%emt
00:03:11]} 29. d6 {[%clk 00:25:50]} {[%emt 00:01:55]} Rf6 {[%clk 01:06:49]}
{[%emt 00:01:06]} 30. Bc4+ {[%clk 00:25:01]} {[%emt 00:01:19]} Kf8 {[%clk
01:06:13]} {[%emt 00:01:06]} 31. Rg7 {[%clk 00:23:40]} {[%emt 00:01:51]} Ke8
{[%clk 01:04:40]} {[%emt 00:02:03]} 32. Rbe7+ {[%clk 00:23:58]} {[%emt
00:00:12]} Kf8 {[%clk 01:04:52]} {[%emt 00:00:19]} 33. Rg8# {[%clk 00:24:20]}
{[%emt 00:00:07]} 1-0

[Event "Mistrovství Čech mládeže 2023 - HD16"]
[Site "Harrachov, Czech Republic"]
[Date "2023.10.27"]
[Round "8.12"]
[White "Mrázek, Adam"]
[Black "Bohatyrov, Mykola"]
[Result "0-1"]
[TimeControl "90m + 30s"]
[WhiteElo "1669"]
[BlackElo "1725"]

1. c4 {[%clk 01:30:41]} {[%emt 00:00:19]} e5 {[%clk 01:30:58]} {[%emt
00:00:03]} 2. g3 {[%clk 01:30:20]} {[%emt 00:00:22]} Nf6 {[%clk 01:31:19]}
{[%emt 00:00:09]} 3. Bg2 {[%clk 01:31:05]} {[%emt 00:00:14]} d5 {[%clk
01:31:36]} {[%emt 00:00:12]} 4. cxd5 {[%clk 01:31:20]} {[%emt 00:00:16]} Nxd5
{[%clk 01:32:02]} {[%emt 00:00:04]} 5. Nc3 {[%clk 01:31:39]} {[%emt 00:00:11]}
Nb6 {[%clk 01:32:23]} {[%emt 00:00:08]} 6. Nf3 {[%clk 01:31:26]} {[%emt
00:00:43]} Nc6 {[%clk 01:32:49]} {[%emt 00:00:04]} 7. O-O {[%clk 01:31:08]}
{[%emt 00:00:47]} Be7 {[%clk 01:33:17]} {[%emt 00:00:03]} 8. d3 {[%clk
01:27:31]} {[%emt 00:04:07]} g5 {[%clk 01:33:18]} {[%emt 00:00:29]} 9. a3
{[%clk 01:21:12]} {[%emt 00:06:49]} g4 {[%clk 01:33:36]} {[%emt 00:00:12]} 10.
Nd2 {[%clk 01:20:24]} {[%emt 00:01:18]} h5 {[%clk 01:33:35]} {[%emt 00:00:32]}
11. b4 {[%clk 01:18:42]} {[%emt 00:02:11]} Nd4 {[%clk 01:33:35]} {[%emt
00:00:30]} 12. Bb2 {[%clk 01:13:43]} {[%emt 00:05:29]} h4 {[%clk 01:33:30]}
{[%emt 00:00:35]} 13. Nb3 {[%clk 01:03:51]} {[%emt 00:10:22]} hxg3 {[%clk
01:33:06]} {[%emt 00:00:54]} 14. hxg3 {[%clk 00:50:24]} {[%emt 00:13:57]} c6
{[%clk 01:32:59]} {[%emt 00:00:36]} 15. Ne4 {[%clk 00:45:21]} {[%emt 00:05:34]}
f5 {[%clk 01:31:21]} {[%emt 00:02:08]} 16. Nec5 {[%clk 00:40:25]} {[%emt
00:05:25]} Qd6 {[%clk 01:25:35]} {[%emt 00:06:16]} 17. Nxd4 {[%clk 00:37:50]}
{[%emt 00:03:05]} exd4 {[%clk 01:26:00]} {[%emt 00:00:06]} 18. Qd2 {[%clk
00:32:40]} {[%emt 00:05:40]} Bf6 {[%clk 01:23:18]} {[%emt 00:03:11]} 19. e3
{[%clk 00:17:27]} {[%emt 00:15:43]} Bg5 {[%clk 01:21:32]} {[%emt 00:02:16]} 20.
Qc2 {[%clk 00:14:46]} {[%emt 00:03:11]} Bf6 {[%clk 01:13:29]} {[%emt 00:08:33]}
21. Rfe1 {[%clk 00:13:16]} {[%emt 00:01:59]} Kf7 {[%clk 01:08:34]} {[%emt
00:05:25]} 22. e4 {[%clk 00:06:52]} {[%emt 00:06:54]} f4 {[%clk 01:06:21]}
{[%emt 00:02:43]} 23. gxf4 {[%clk 00:02:04]} {[%emt 00:05:18]} Qxf4 {[%clk
01:06:26]} {[%emt 00:00:25]} 24. Qb3+ {[%clk 00:00:52]} {[%emt 00:01:42]} Kg6
{[%clk 01:06:30]} {[%emt 00:00:26]} 25. e5 {[%clk 00:01:02]} {[%emt 00:00:20]}
Bh4 {[%clk 01:04:18]} {[%emt 00:02:41]} 26. Qc2 {[%clk 00:00:47]} {[%emt
00:00:46]} g3 {[%clk 01:01:48]} {[%emt 00:03:00]} 27. f3 {[%clk 00:00:49]}
{[%emt 00:00:27]} Be7 {[%clk 01:00:41]} {[%emt 00:01:37]} 28. Qe2 {[%clk
00:00:44]} {[%emt 00:00:35]} Bf5 {[%clk 01:00:51]} {[%emt 00:00:20]} 29. Bc1
{[%clk 00:00:33]} {[%emt 00:00:41]} Qh4 {[%clk 01:01:17]} {[%emt 00:00:04]} 30.
Ne4 {[%clk 00:00:40]} {[%emt 00:00:23]} Qh2+ {[%clk 01:01:22]} {[%emt
00:00:25]} 31. Kf1 {[%clk 00:01:02]} {[%emt 00:00:07]} Bh3 {[%clk 01:01:48]}
{[%emt 00:00:05]} 32. Nxg3 {[%clk 00:00:42]} {[%emt 00:00:50]} Qxg3 {[%clk
01:02:04]} {[%emt 00:00:14]} 33. Qe4+ {[%clk 00:00:50]} {[%emt 00:00:22]} Bf5
{[%clk 01:02:29]} {[%emt 00:00:04]} 34. Qe2 {[%clk 00:00:35]} {[%emt 00:00:45]}
Nd5 {[%clk 01:02:17]} {[%emt 00:00:43]} 35. Qa2 {[%clk 00:00:32]} {[%emt
00:00:34]} Bxd3+ {[%clk 01:02:35]} {[%emt 00:00:12]} 36. Re2 {[%clk 00:00:35]}
{[%emt 00:00:26]} Rh2 {[%clk 01:02:20]} {[%emt 00:00:45]} 37. Kg1 {[%clk
00:00:43]} {[%emt 00:00:22]} Rah8 {[%clk 01:02:46]} {[%emt 00:00:05]} 0-1

[Event "Mistrovství Čech mládeže 2023 - HD16"]
[Site "Harrachov, Czech Republic"]
[Date "2023.10.27"]
[Round "8.13"]
[White "Mikhno, Artem"]
[Black "Langmaier, Michal"]
[Result "1/2-1/2"]
[TimeControl "90m + 30s"]
[WhiteElo "1781"]
[BlackElo "1697"]

1. d4 {[%clk 01:30:58]} {[%emt 00:00:02]} d5 {[%clk 01:30:49]} {[%emt
00:00:11]} 2. c4 {[%clk 01:30:42]} {[%emt 00:00:46]} e6 {[%clk 01:30:39]}
{[%emt 00:00:41]} 3. Nc3 {[%clk 01:30:47]} {[%emt 00:00:26]} f5 {[%clk
01:30:17]} {[%emt 00:00:52]} 4. Bf4 {[%clk 01:28:35]} {[%emt 00:02:41]} Nf6
{[%clk 01:28:26]} {[%emt 00:02:18]} 5. e3 {[%clk 01:26:04]} {[%emt 00:03:04]}
c6 {[%clk 01:28:07]} {[%emt 00:00:49]} 6. Nf3 {[%clk 01:25:52]} {[%emt
00:00:43]} Bb4 {[%clk 01:27:00]} {[%emt 00:01:37]} 7. Qb3 {[%clk 01:25:29]}
{[%emt 00:00:53]} Qa5 {[%clk 01:23:56]} {[%emt 00:03:33]} 8. Nd2 {[%clk
01:24:47]} {[%emt 00:01:12]} O-O {[%clk 01:21:47]} {[%emt 00:02:39]} 9. Be2
{[%clk 01:20:42]} {[%emt 00:04:36]} Nbd7 {[%clk 01:16:51]} {[%emt 00:05:26]} 10.
O-O {[%clk 01:20:16]} {[%emt 00:00:56]} Ne4 {[%clk 01:07:18]} {[%emt 00:10:03]}
11. Ndxe4 {[%clk 01:20:18]} {[%emt 00:00:28]} fxe4 {[%clk 01:07:25]} {[%emt
00:00:23]} 12. cxd5 {[%clk 01:20:37]} {[%emt 00:00:11]} exd5 {[%clk 01:03:28]}
{[%emt 00:04:28]} 13. Nxe4 {[%clk 01:20:43]} {[%emt 00:00:24]} Kh8 {[%clk
01:00:37]} {[%emt 00:03:21]} 14. Bd6 {[%clk 01:20:46]} {[%emt 00:00:27]} Bxd6
{[%clk 00:59:04]} {[%emt 00:02:03]} 15. Nxd6 {[%clk 01:21:11]} {[%emt
00:00:05]} Qc7 {[%clk 00:58:21]} {[%emt 00:01:12]} 16. Nxc8 {[%clk 01:21:30]}
{[%emt 00:00:12]} Raxc8 {[%clk 00:58:37]} {[%emt 00:00:14]} 17. Bg4 {[%clk
01:20:17]} {[%emt 00:01:43]} Rce8 {[%clk 00:56:48]} {[%emt 00:02:19]} 18. Bxd7
{[%clk 01:20:24]} {[%emt 00:00:23]} Qxd7 {[%clk 00:57:15]} {[%emt 00:00:03]} 19.
Qd3 {[%clk 01:20:31]} {[%emt 00:00:23]} Rf6 {[%clk 00:56:52]} {[%emt 00:00:53]}
20. Rae1 {[%clk 01:16:47]} {[%emt 00:04:14]} Rh6 {[%clk 00:50:20]} {[%emt
00:07:02]} 21. e4 {[%clk 01:16:09]} {[%emt 00:01:08]} dxe4 {[%clk 00:50:07]}
{[%emt 00:00:43]} 22. Rxe4 {[%clk 01:16:28]} {[%emt 00:00:12]} Rxe4 {[%clk
00:50:19]} {[%emt 00:00:18]} 23. Qxe4 {[%clk 01:16:52]} {[%emt 00:00:06]} Rd6
{[%clk 00:49:52]} {[%emt 00:00:56]} 24. Re1 {[%clk 01:16:00]} {[%emt 00:01:22]}
h6 {[%clk 00:49:15]} {[%emt 00:01:07]} 25. Rd1 {[%clk 01:09:03]} {[%emt
00:07:27]} Rd5 {[%clk 00:48:38]} {[%emt 00:01:07]} 26. Re1 {[%clk 01:04:33]}
{[%emt 00:05:00]} Rxd4 {[%clk 00:48:20]} {[%emt 00:00:48]} 27. Qe3 {[%clk
01:03:56]} {[%emt 00:01:07]} Rd2 {[%clk 00:32:07]} {[%emt 00:16:43]} 28. Qe5
{[%clk 01:02:11]} {[%emt 00:02:16]} Qd4 {[%clk 00:27:34]} {[%emt 00:05:02]} 29.
Qxd4 {[%clk 01:02:02]} {[%emt 00:00:39]} Rxd4 {[%clk 00:27:58]} {[%emt
00:00:06]} 30. Kf1 {[%clk 01:02:27]} {[%emt 00:00:05]} Rd2 {[%clk 00:28:11]}
{[%emt 00:00:17]} 31. Re2 {[%clk 01:00:31]} {[%emt 00:02:27]} Rd1+ {[%clk
00:27:47]} {[%emt 00:00:54]} 1/2-1/2

[Event "Mistrovství Čech mládeže 2023 - HD16"]
[Site "Harrachov, Czech Republic"]
[Date "2023.10.27"]
[Round "8.14"]
[White "Mauder, Karel"]
[Black "Tesař, Jakub"]
[Result "0-1"]
[TimeControl "90m + 30s"]
[WhiteElo "1423"]
[BlackElo "1893"]

1. d4 {[%clk 01:30:58]} {[%emt 00:00:02]} Nf6 {[%emt 00:00:13]} 2. c4 {[%clk
01:31:15]} {[%emt 00:00:12]} e6 {[%clk 01:31:09]} {[%emt 00:00:10]} 3. g3
{[%clk 01:31:19]} {[%emt 00:00:26]} d5 {[%clk 01:31:04]} {[%emt 00:00:35]} 4.
Nf3 {[%clk 01:30:01]} {[%emt 00:01:46]} dxc4 {[%clk 01:29:36]} {[%emt
00:01:58]} 5. Nbd2 {[%clk 01:27:03]} {[%emt 00:03:29]} b5 {[%clk 01:26:27]}
{[%emt 00:03:40]} 6. Bg2 {[%clk 01:25:23]} {[%emt 00:02:09]} Bb7 {[%clk
01:22:51]} {[%emt 00:04:07]} 7. a4 {[%clk 01:23:14]} {[%emt 00:02:39]} a6
{[%clk 01:22:00]} {[%emt 00:01:21]} 8. axb5 {[%clk 01:21:20]} {[%emt 00:02:24]}
axb5 {[%clk 01:22:27]} {[%emt 00:00:03]} 9. Rxa8 {[%clk 01:21:40]} {[%emt
00:00:09]} Bxa8 {[%clk 01:22:50]} {[%emt 00:00:07]} 10. O-O {[%clk 01:21:18]}
{[%emt 00:00:52]} Be7 {[%clk 01:05:41]} {[%emt 00:17:40]} 11. Qc2 {[%clk
01:19:14]} {[%emt 00:02:34]} O-O {[%clk 01:05:20]} {[%emt 00:00:51]} 12. b3
{[%clk 01:18:42]} {[%emt 00:01:02]} cxb3 {[%clk 01:03:03]} {[%emt 00:02:47]} 13.
Nxb3 {[%clk 01:18:27]} {[%emt 00:00:44]} Be4 {[%clk 00:59:27]} {[%emt
00:04:08]} 14. Qb2 {[%clk 01:14:50]} {[%emt 00:04:06]} Nbd7 {[%clk 00:54:32]}
{[%emt 00:05:25]} 15. Bf4 {[%clk 01:13:14]} {[%emt 00:02:05]} Nd5 {[%clk
00:47:20]} {[%emt 00:07:43]} 16. Nc5 {[%clk 01:06:33]} {[%emt 00:07:11]} Nxc5
{[%clk 00:43:09]} {[%emt 00:04:41]} 17. dxc5 {[%clk 01:06:38]} {[%emt
00:00:24]} Nxf4 {[%clk 00:42:51]} {[%emt 00:00:49]} 18. gxf4 {[%clk 01:06:54]}
{[%emt 00:00:13]} c6 {[%clk 00:42:19]} {[%emt 00:01:03]} 19. Qc1 {[%clk
00:59:00]} {[%emt 00:08:24]} Qc7 {[%clk 00:24:56]} {[%emt 00:17:48]} 20. Rd1
{[%clk 00:56:57]} {[%emt 00:02:37]} Rd8 {[%clk 00:20:18]} {[%emt 00:05:09]} 21.
Ne5 {[%clk 00:55:29]} {[%emt 00:01:57]} Rxd1+ {[%clk 00:17:30]} {[%emt
00:03:19]} 0-1

[Event "Mistrovství Čech mládeže 2023 - HD16"]
[Site "Harrachov, Czech Republic"]
[Date "2023.10.27"]
[Round "8.15"]
[White "Tichý, Tomáš"]
[Black "Hrubý, Filip"]
[Result "0-1"]
[TimeControl "90m + 30s"]
[WhiteElo "1697"]
[BlackElo "1386"]

1. e4 {[%clk 01:30:58]} {[%emt 00:00:01]} c6 {[%clk 01:30:50]} {[%emt
00:00:11]} 2. d4 {[%clk 01:31:24]} {[%emt 00:00:04]} d5 {[%clk 01:31:15]}
{[%emt 00:00:05]} 3. Nc3 {[%clk 01:31:50]} {[%emt 00:00:04]} dxe4 {[%clk
01:31:36]} {[%emt 00:00:08]} 4. Nxe4 {[%clk 01:32:17]} {[%emt 00:00:03]} Bf5
{[%clk 01:32:00]} {[%emt 00:00:06]} 5. Ng3 {[%clk 01:32:44]} {[%emt 00:00:04]}
Bg6 {[%clk 01:32:23]} {[%emt 00:00:06]} 6. N1e2 {[%clk 01:33:11]} {[%emt
00:00:04]} e6 {[%clk 01:31:00]} {[%emt 00:01:53]} 7. h4 {[%clk 01:33:35]}
{[%emt 00:00:06]} h6 {[%clk 01:30:23]} {[%emt 00:01:06]} 8. Nf4 {[%clk
01:34:01]} {[%emt 00:00:04]} Bh7 {[%clk 01:29:11]} {[%emt 00:01:42]} 9. Bd3
{[%clk 01:34:28]} {[%emt 00:00:04]} Bxd3 {[%clk 01:29:22]} {[%emt 00:00:18]} 10.
Qxd3 {[%clk 01:34:54]} {[%emt 00:00:04]} Nf6 {[%clk 01:28:39]} {[%emt
00:01:12]} 11. Bd2 {[%clk 01:35:20]} {[%emt 00:00:04]} Nbd7 {[%clk 01:24:56]}
{[%emt 00:04:13]} 12. O-O-O {[%clk 01:35:41]} {[%emt 00:00:09]} Nb6 {[%clk
01:24:12]} {[%emt 00:01:15]} 13. Rhe1 {[%clk 01:23:15]} {[%emt 00:12:57]} Bd6
{[%clk 01:17:46]} {[%emt 00:06:55]} 14. Nf5 {[%clk 00:56:16]} {[%emt 00:27:29]}
O-O {[%clk 01:11:16]} {[%emt 00:07:00]} 15. Nxd6 {[%clk 00:42:13]} {[%emt
00:14:34]} Qxd6 {[%clk 01:11:16]} {[%emt 00:00:30]} 16. g4 {[%clk 00:39:38]}
{[%emt 00:03:06]} Nxg4 {[%clk 00:54:15]} {[%emt 00:17:31]} 17. Rg1 {[%clk
00:39:32]} {[%emt 00:00:36]} f5 {[%clk 00:54:26]} {[%emt 00:00:19]} 18. Qb3
{[%clk 00:31:28]} {[%emt 00:08:34]} Nd5 {[%clk 00:48:58]} {[%emt 00:05:57]} 19.
Nh5 {[%clk 00:30:12]} {[%emt 00:01:46]} Rf7 {[%clk 00:42:44]} {[%emt 00:06:44]}
20. f3 {[%clk 00:27:48]} {[%emt 00:02:54]} Ngf6 {[%clk 00:42:35]} {[%emt
00:00:38]} 21. Nxg7 {[%clk 00:20:36]} {[%emt 00:07:42]} Rxg7 {[%clk 00:41:28]}
{[%emt 00:01:37]} 22. Rxg7+ {[%clk 00:19:51]} {[%emt 00:01:15]} Kxg7 {[%clk
00:41:51]} {[%emt 00:00:07]} 23. c4 {[%clk 00:16:20]} {[%emt 00:04:02]} Ne7
{[%clk 00:35:00]} {[%emt 00:07:20]} 24. c5 {[%clk 00:13:06]} {[%emt 00:03:44]}
Qd7 {[%clk 00:34:38]} {[%emt 00:00:47]} 25. Rg1+ {[%clk 00:12:47]} {[%emt
00:00:55]} Kh7 {[%clk 00:33:19]} {[%emt 00:01:49]} 26. Qe3 {[%clk 00:11:39]}
{[%emt 00:01:37]} Neg8 {[%clk 00:31:35]} {[%emt 00:02:14]} 27. h5 {[%clk
00:10:47]} {[%emt 00:01:22]} Nd5 {[%clk 00:26:39]} {[%emt 00:05:27]} 28. Qe5
{[%clk 00:11:01]} {[%emt 00:00:16]} Ngf6 {[%clk 00:26:35]} {[%emt 00:00:34]} 29.
Rg6 {[%clk 00:10:57]} {[%emt 00:00:34]} Ng8 {[%clk 00:21:37]} {[%emt 00:05:27]}
30. Rxe6 {[%clk 00:07:58]} {[%emt 00:03:30]} Qf7 {[%clk 00:20:27]} {[%emt
00:01:39]} 31. Rg6 {[%clk 00:06:39]} {[%emt 00:01:50]} Re8 {[%clk 00:19:28]}
{[%emt 00:01:29]} 32. Qd6 {[%clk 00:06:34]} {[%emt 00:00:35]} f4 {[%clk
00:12:49]} {[%emt 00:07:08]} 33. Rg4 {[%clk 00:06:04]} {[%emt 00:01:00]} Qe6
{[%clk 00:12:38]} {[%emt 00:00:40]} 34. Bxf4 {[%clk 00:03:32]} {[%emt
00:03:04]} Nxf4 {[%clk 00:11:39]} {[%emt 00:01:29]} 35. Qxf4 {[%clk 00:02:25]}
{[%emt 00:01:37]} Qe3+ {[%clk 00:11:56]} {[%emt 00:00:12]} 36. Kc2 {[%clk
00:02:04]} {[%emt 00:00:52]} Qxf4 {[%clk 00:12:07]} {[%emt 00:00:19]} 37. Rxf4
{[%clk 00:02:31]} {[%emt 00:00:04]} Kg7 {[%clk 00:12:15]} {[%emt 00:00:21]} 38.
Rg4+ {[%clk 00:02:44]} {[%emt 00:00:17]} Kf7 {[%clk 00:12:35]} {[%emt
00:00:09]} 39. Rg6 {[%clk 00:03:06]} {[%emt 00:00:09]} Re6 {[%clk 00:12:43]}
{[%emt 00:00:22]} 40. Rg2 {[%clk 00:03:18]} {[%emt 00:00:18]} Nf6 {[%clk
00:12:57]} {[%emt 00:00:16]} 41. a3 {[%clk 00:03:21]} {[%emt 00:00:28]} Nxh5
{[%clk 00:13:14]} {[%emt 00:00:12]} 0-1